bitfinex/quotes_SOLUSD_20250216
["timestamp","ask_amount","ask_price","bid_price","bid_amount"]
[1739718740765,83.1,190.41,190.36,0.063]
[1739718740987,88.352,190.41,190.36,0.063]
[1739718742188,83.1,190.41,190.36,0.063]
[1739718742876,88.3518,190.41,190.36,0.063]
[1739718746722,83.1,190.4,190.36,0.063]
[1739718751599,88.3521,190.4,190.36,0.063]
[1739718752811,83.1,190.39,190.36,0.063]
[1739718753010,83.1,190.38,190.36,0.063]
[1739718758635,83.1,190.37,190.36,13.47484853]
[1739718758930,83.1,190.37,190.36,15.01864853]
[1739718759717,83.1,190.37,190.36,26.50764853]
[1739718759931,0.03,190.43,190.42,33.41184853]
[1739718760116,0.03,190.43,190.42,117.39919996]
[1739718760320,0.03,190.43,190.42,116.61184853]
[1739718761831,0.03,190.43,190.42,121.86334853]
[1739718768347,83.1,190.54,190.48,14.95564853]
[1739718768547,83.1,190.53,190.49,14.1990063]
[1739718768737,83.1,190.53,190.49,13.41184853]
[1739718769642,83.1,190.53,190.51,13.41184853]
[1739718770451,83.1,190.53,190.48,26.7934]
[1739718770862,83.1,190.53,190.49,13.41184853]
[1739718771357,83.1,190.53,190.48,20.0]
[1739718772552,83.1,190.53,190.48,25.2498]
[1739718773050,83.1,190.53,190.49,13.41184853]
[1739718773558,83.1,190.52,190.49,13.41184853]
[1739718773949,83.1,190.52,190.5,5.2493]
[1739718774350,0.03,190.55,190.5,5.2493]
[1739718774351,0.03,190.55,190.51,13.41184853]
[1739718774552,83.1,190.54,190.51,13.41184853]
[1739718775971,83.1,190.54,190.51,5.2488]
[1739718776973,83.1,190.54,190.49,13.41184853]
[1739718777158,83.1,190.54,190.51,13.41184853]
[1739718778168,83.1,190.54,190.5,5.2493]
[1739718778352,83.1,190.54,190.49,5.2496]
[1739718778869,83.13,190.54,190.5,13.41184853]
[1739718779443,83.1,190.53,190.5,13.41184853]
[1739718779959,83.1,190.53,190.5,18.66114853]
[1739718782145,83.1,190.53,190.52,33.41184853]
[1739718782345,0.03,190.54,190.52,33.41184853]
[1739718782661,0.03,190.54,190.52,20.0]
[1739718784048,0.03,190.54,190.53,5.2485]
[1739718784456,0.03,190.54,190.52,20.0]
[1739718784966,0.03,190.54,190.52,25.2487]
[1739718785163,0.03,190.54,190.5,1.5987]
[1739718785349,0.03,190.54,190.5,5.2492]
[1739718785350,83.1,190.53,190.5,5.2492]
[1739718790165,83.1,190.53,190.48,83.16]
[1739718790379,83.1,190.52,190.48,83.16]
[1739718791372,83.1,190.52,190.48,88.4098]
[1739718791669,83.1,190.52,190.48,5.2498]
[1739718792700,83.1,190.52,190.49,13.41184853]
[1739718794975,83.1,190.52,190.5,5.2493]
[1739718796784,83.1,190.52,190.51,33.41184853]
[1739718797373,83.1,190.52,190.51,13.41184853]
[1739718800785,83.1,190.52,190.51,18.66084853]
[1739718806889,83.1,190.52,190.5,5.2493]
[1739718812184,83.1,190.51,190.5,5.2493]
[1739718815981,83.1,190.51,190.49,13.41184853]
[1739718816186,83.1,190.51,190.49,18.66144853]
[1739718824104,83.1,190.5,190.49,18.66144853]
[1739718826094,0.03,190.53,190.49,18.66144853]
[1739718826293,0.03,190.53,190.51,13.41184853]
[1739718826704,0.03,190.53,190.49,19.16077464]
[1739718826904,0.03,190.53,190.5,13.41184853]
[1739718827301,0.03,190.53,190.52,13.41184853]
[1739718827805,0.03,190.53,190.5,14.19895958]
[1739718828615,0.03,190.53,190.51,18.66084853]
[1739718830512,0.03,190.53,190.51,17.72368942]
[1739718832820,0.03,190.53,190.51,5.249]
[1739718833117,83.1,190.52,190.51,5.249]
[1739718838720,83.1,190.52,190.51,18.66084853]
[1739718842118,83.1,190.51,190.49,5.53929177]
[1739718842314,83.1,190.51,190.48,88.3696]
[1739718842522,83.1,190.5,190.48,83.12]
[1739718843522,5.2487,190.52,190.48,83.12]
[1739718843699,5.2487,190.52,190.44,5.2509]
[1739718843905,0.03,190.52,190.44,5.2509]
[1739718844521,0.03,190.52,190.43,5.3142]
[1739718844724,0.03,190.52,190.43,0.063]
[1739718844938,6.3371,190.5,190.43,0.063]
[1739718848637,11.5864,190.5,190.43,0.063]
[1739718849145,83.1,190.49,190.43,0.063]
[1739718850815,88.3496,190.49,190.43,0.063]
[1739718851851,83.1,190.48,190.43,0.063]
[1739718852058,83.1,190.47,190.43,0.063]
[1739718852242,1.648,190.46,190.43,0.063]
[1739718852847,6.369,190.44,190.43,0.063]
[1739718853331,26.369,190.44,190.43,0.063]
[1739718853954,26.369,190.44,190.42,0.063]
[1739718854152,20.0,190.43,190.42,0.063]
[1739718854863,25.2512,190.43,190.42,0.063]
[1739718855660,42.0146,190.43,190.36,0.063]
[1739718856071,1.0,190.42,190.36,0.063]
[1739718856670,54.42644853,190.43,190.42,0.063]
[1739718856831,53.42644853,190.43,190.42,0.063]
[1739718857241,55.42644853,190.43,190.42,0.063]
[1739718858249,57.54303778,190.43,190.42,0.063]
[1739718858452,55.42644853,190.43,190.42,0.063]
[1739718859054,54.42644853,190.43,190.42,0.063]
[1739718859261,1.0,190.42,190.36,0.063]
[1739718859461,5.2518,190.41,190.36,0.063]
[1739718860359,19.3813,190.41,190.36,0.063]
[1739718860562,20.0,190.38,190.36,0.063]
[1739718861356,11.7409,190.37,190.36,0.063]
[1739718861560,13.3762,190.37,190.36,0.063]
[1739718866573,13.3762,190.37,190.35,0.05119322]
[1739718867544,13.41184853,190.36,190.34,9.322e-05]
[1739718867744,1.0,190.31,190.28,0.063]
[1739718867978,2.0,190.34,190.28,0.063]
[1739718868481,1.0,190.33,190.28,0.063]
[1739718868849,1.0,190.32,190.28,0.063]
[1739718869767,5.2545,190.31,190.28,0.063]
[1739718872161,14.1362,190.32,190.28,0.063]
[1739718872356,20.3905,190.32,190.28,0.063]
[1739718872560,18.3905,190.32,190.28,0.063]
[1739718876761,19.3905,190.32,190.28,0.063]
[1739718876960,13.1362,190.32,190.28,0.063]
[1739718877555,83.1,190.31,190.28,0.063]
[1739718878086,5.2548,190.3,190.28,0.063]
[1739718880586,88.3551,190.29,190.28,0.063]
[1739718881089,5.2551,190.29,190.28,0.063]
[1739718882395,5.2548,190.3,190.28,0.063]
[1739718883382,18.66634853,190.31,190.28,0.063]
[1739718883695,5.2545,190.31,190.28,0.063]
[1739718884288,83.1,190.3,190.28,0.063]
[1739718884483,83.1,190.3,190.24,0.063]
[1739718884703,83.1,190.29,190.24,0.063]
[1739718885391,5.2554,190.28,190.24,0.063]
[1739718885989,83.1,190.27,190.24,0.063]
[1739718887297,5.2559,190.26,190.24,0.063]
[1739718887495,83.1,190.25,190.24,0.063]
[1739718892376,5.2557,190.27,190.24,0.063]
[1739718892774,20.03,190.29,190.24,0.063]
[1739718895100,0.03,190.29,190.24,0.063]
[1739718897231,0.03,190.29,190.24,13.47484853]
[1739718898022,0.03,190.29,190.24,0.063]
[1739718898922,83.1,190.28,190.24,0.063]
[1739718899512,88.3555,190.28,190.24,0.063]
[1739718899716,83.1,190.28,190.24,0.063]
[1739718902205,88.3554,190.28,190.24,0.063]
[1739718902825,5.2554,190.28,190.24,0.063]
[1739718905532,0.03,190.29,190.24,0.063]
[1739718906639,20.0,190.27,190.24,0.063]
[1739718906836,5.2559,190.26,190.24,0.063]
[1739718909038,2.6926,190.29,190.24,0.063]
[1739718909039,5.2554,190.28,190.24,0.063]
[1739718909721,18.3939,190.28,190.24,0.063]
[1739718910143,83.1,190.27,190.24,0.063]
[1739718911229,5.2559,190.26,190.24,0.063]
[1739718915619,139.5,190.25,190.23,0.063]
[1739718915939,138.5,190.25,190.22,0.063]
[1739718917643,5.2565,190.24,190.22,0.063]
[1739718918150,28.24244853,190.29,190.22,0.063]
[1739718918151,5.2554,190.28,190.22,0.063]
[1739718918440,8.24990178,190.26,190.22,0.063]
[1739718919032,5.2562,190.25,190.22,0.063]
[1739718919228,5.2562,190.25,190.24,0.03]
[1739718920134,5.3184,190.28,190.24,0.03]
[1739718921552,18.4569,190.28,190.24,0.03]
[1739718922049,83.1,190.27,190.24,0.03]
[1739718922647,14.41184853,190.25,190.22,0.063]
[1739718922826,1.0,190.24,190.2,0.063]
[1739718923144,84.1,190.23,190.2,0.063]
[1739718924553,5.257,190.22,190.2,0.063]
[1739718925853,84.1,190.23,190.2,0.063]
[1739718925854,241.26914853,190.21,190.2,0.063]
[1739718926025,240.26914853,190.21,190.2,0.063]
[1739718927757,241.26914853,190.21,190.2,0.063]
[1739718927930,240.26914853,190.21,190.2,0.063]
[1739718930960,83.007,190.19,190.16,0.063]
[1739718931156,83.007,190.18,190.16,0.063]
[1739718932073,88.2652,190.18,190.16,0.063]
[1739718937065,88.2654,190.17,190.16,0.063]
[1739718937641,83.007,190.17,190.16,0.063]
[1739718938139,88.2654,190.17,190.16,0.063]
[1739718942951,5.2584,190.17,190.16,0.063]
[1739718943669,20.0,190.17,190.16,0.063]
[1739718946071,25.2584,190.17,190.16,0.063]
[1739718953149,39.67024853,190.17,190.16,0.0001]
[1739718957075,83.0999,190.15,190.08,0.063]
[1739718957281,83.0999,190.14,190.08,0.063]
[1739718957779,88.3593,190.14,190.08,0.063]
[1739718960692,83.0999,190.13,190.08,0.063]
[1739718961460,88.3597,190.13,190.08,0.063]
[1739718966598,83.0999,190.12,190.08,0.063]
[1739718966765,88.3597,190.12,190.08,0.063]
[1739718967181,83.0999,190.12,190.08,0.063]
[1739718968195,83.0999,190.11,190.08,0.063]
[1739718968376,83.0999,190.1,190.08,0.063]
[1739718968580,83.0999,190.09,190.08,0.063]
[1739718969068,18.67084853,190.15,190.08,0.063]
[1739718970393,5.3217,190.16,190.08,0.063]
[1739718971496,13.41184853,190.15,190.08,0.063]
[1739718973504,5.2592,190.14,190.08,0.063]
[1739718974173,14.41184853,190.13,190.08,0.063]
[1739718974377,14.41184853,190.13,190.04,1.6886]
[1739718974378,1.0,190.09,190.04,0.063]
[1739718974576,1.0,190.12,190.04,0.063]
[1739718974992,27.4388,190.14,190.04,0.063]
[1739718975186,28.4388,190.14,190.04,0.063]
[1739718975481,18.4093,190.12,190.04,0.063]
[1739718976312,13.41184853,190.11,190.04,0.063]
[1739718977517,5.2603,190.1,190.04,0.063]
[1739718977703,83.1,190.08,190.04,0.063]
[1739718979506,5.2612,190.07,190.04,0.063]
[1739718980178,88.361,190.08,190.04,0.063]
[1739718981493,83.1,190.07,190.04,0.063]
[1739718981884,88.3613,190.07,190.04,0.063]
[1739718982086,83.1,190.06,190.04,0.063]
[1739718982285,83.1,190.05,190.04,0.063]
[1739718984200,5.2601,190.11,190.04,0.063]
[1739718985585,13.1502,190.11,190.04,0.063]
[1739718986403,13.41184853,190.1,190.04,0.063]
[1739718987613,14.41184853,190.1,190.04,0.063]
[1739718987912,18.4122,190.09,190.04,0.063]
[1739718989513,14.41184853,190.08,190.04,0.063]
[1739718989712,5.2612,190.07,190.04,0.063]
[1739718990213,151.91184853,190.06,190.04,0.063]
[1739718990409,138.5,190.05,190.04,0.063]
[1739718991813,143.7617,190.05,190.04,0.063]
[1739718995619,13.41184853,190.07,190.04,0.063]
[1739718995812,5.2612,190.07,190.04,0.063]
[1739719002030,13.41184853,190.05,190.02,0.03]
[1739719002407,18.4142,190.07,190.02,0.03]
[1739719002734,13.41184853,190.06,190.02,0.03]
[1739719003025,14.41184853,190.06,190.02,0.03]
[1739719003618,19.4142,190.07,190.02,0.03]
[1739719003619,83.1,190.04,190.02,0.03]
[1739719004130,5.2623,190.03,190.02,0.03]
[1739719005614,13.153,190.07,190.02,0.03]
[1739719005814,5.2614,190.06,190.02,0.03]
[1739719006110,13.153,190.07,190.02,0.03]
[1739719006111,18.4142,190.07,190.02,0.03]
[1739719007622,13.153,190.07,190.02,0.03]
[1739719016534,13.216,190.07,190.02,0.03]
[1739719020758,0.063,190.07,190.02,0.03]
[1739719022360,0.063,190.07,190.04,1.5624]
[1739719024961,83.1,190.06,190.04,1.5624]
[1739719025144,83.1,190.06,190.02,0.03]
[1739719027262,0.063,190.07,190.02,0.03]
[1739719027967,0.063,190.07,190.03,1.5296]
[1739719028340,0.063,190.07,190.03,6.7918]
[1739719029659,0.063,190.07,190.03,1.5296]
[1739719034863,0.063,190.07,190.02,0.03]
[1739719036284,83.1,190.06,190.02,0.03]
[1739719037359,5.2617,190.05,190.02,0.03]
[1739719037680,83.1,190.06,190.02,0.03]
[1739719037866,88.3615,190.06,190.02,0.03]
[1739719040993,83.1,190.05,190.02,0.03]
[1739719042395,5.262,190.04,190.02,0.03]
[1739719044187,83.1,190.05,190.02,0.03]
[1739719046794,83.1,190.04,190.02,0.03]
[1739719049195,5.2623,190.03,190.02,0.03]
[1739719051001,21.0617,190.06,190.02,0.03]
[1739719051185,5.2617,190.05,190.02,0.03]
[1739719055703,5.3247,190.05,190.02,0.03]
[1739719060576,0.063,190.05,190.02,0.03]
[1739719061301,0.063,190.05,190.03,7.8504]
[1739719061499,0.063,190.05,190.04,13.41184853]
[1739719062611,0.063,190.05,190.04,19.67379257]
[1739719063215,0.063,190.07,190.06,33.41184853]
[1739719063415,0.063,190.08,190.07,14.41179257]
[1739719064715,0.063,190.08,190.07,19.67299257]
[1739719065418,0.063,190.08,190.07,20.67299257]
[1739719065621,0.063,190.12,190.09,1.99994404]
[1739719065915,0.063,190.12,190.1,21.40345609]
[1739719066089,0.063,190.12,190.11,1.0]
[1739719067416,0.063,190.12,190.11,6.2601]
[1739719067923,0.063,190.12,190.11,5.2601]
[1739719068713,0.063,190.12,190.11,6.2601]
[1739719069095,0.063,190.12,190.11,5.2601]
[1739719069410,0.063,190.12,190.11,6.2601]
[1739719071020,0.063,190.12,190.11,5.2601]
[1739719072116,0.063,190.12,190.07,1.7887866]
[1739719072436,0.063,190.12,190.08,6.26084404]
[1739719072623,0.063,190.12,190.09,1.0]
[1739719072806,0.063,190.12,190.1,13.41184853]
[1739719073213,0.063,190.12,190.1,15.41179257]
[1739719073411,0.063,190.12,190.11,1.0]
[1739719073816,0.063,190.12,190.11,6.2601]
[1739719077431,0.063,190.12,190.11,5.2601]
[1739719077632,0.063,190.12,190.11,6.2601]
[1739719078225,0.063,190.12,190.11,20.67189257]
[1739719078527,0.063,190.12,190.11,21.46058621]
[1739719079212,0.0001,190.12,190.11,23.11018621]
[1739719080410,0.063,190.21,190.15,1.0]
[1739719080613,0.063,190.21,190.15,36.20034988]
[1739719081020,0.063,190.21,190.15,118.50040584]
[1739719081244,0.063,190.21,190.15,117.71184853]
[1739719081539,0.0001,190.16,190.15,98.71179257]
[1739719081707,0.063,190.21,190.2,1.99994404]
[1739719081907,0.063,190.21,190.2,14.41184853]
[1739719082607,0.063,190.21,190.2,19.66944853]
[1739719083007,0.063,190.21,190.16,1.78838784]
[1739719083233,0.063,190.21,190.18,1.0]
[1739719083429,0.063,190.21,190.19,33.41184853]
[1739719084329,0.063,190.21,190.2,1.0]
[1739719084837,0.063,190.21,190.2,6.2576]
[1739719086834,0.063,190.21,190.2,5.2576]
[1739719087728,0.063,190.21,190.19,33.41184853]
[1739719088063,0.063,190.21,190.08,26.3034]
[1739719088064,83.163,190.21,190.15,83.3]
[1739719089240,83.163,190.21,190.15,88.5588]
[1739719089561,83.163,190.21,190.16,13.41184853]
[1739719090547,83.163,190.21,190.17,5.2584]
[1739719091240,83.163,190.21,190.15,83.3]
[1739719091550,88.4204,190.21,190.15,83.3]
[1739719092133,83.163,190.21,190.15,83.3]
[1739719092343,83.163,190.21,190.12,14.41184853]
[1739719092655,83.163,190.21,190.13,5.2595]
[1739719093857,88.4204,190.21,190.13,5.2595]
[1739719094028,88.4204,190.21,190.14,3.92]
[1739719095460,88.4204,190.21,190.11,0.03]
[1739719095633,83.1,190.2,190.11,0.03]
[1739719095834,84.6772,190.19,190.11,0.03]
[1739719096838,84.6772,190.19,190.11,5.29]
[1739719096839,1.5772,190.19,190.11,5.29]
[1739719097043,0.063,190.21,190.12,14.41184853]
[1739719097245,0.063,190.21,190.15,20.0]
[1739719097763,0.063,190.21,190.15,25.2587]
[1739719098353,0.063,190.21,190.15,20.0]
[1739719098943,0.063,190.21,190.13,5.2595]
[1739719101254,0.063,190.21,190.13,6.2595]
[1739719103462,0.063,190.21,190.14,19.45961833]
[1739719103774,0.063,190.21,190.14,23.00736237]
[1739719107153,0.063,190.21,190.17,20.0]
[1739719107349,0.063,190.21,190.17,33.41184853]
[1739719110486,0.063,190.21,190.17,39.45878727]
[1739719113180,0.063,190.21,190.17,38.67024853]
[1739719114387,0.063,190.21,190.17,33.41184853]
[1739719114974,0.063,190.21,190.17,38.67014853]
[1739719126879,0.063,190.21,190.17,33.41184853]
[1739719127394,0.063,190.21,190.17,38.67004853]
[1739719140399,0.063,190.21,190.17,33.41184853]
[1739719140798,0.063,190.21,190.17,38.67014853]
[1739719141107,0.063,190.21,190.17,33.41184853]
[1739719143312,0.063,190.21,190.16,0.03]
[1739719143482,0.063,190.21,190.16,13.44184853]
[1739719144025,0.063,190.21,190.16,0.03]
[1739719146590,0.063,190.21,190.18,13.41184853]
[1739719147016,0.063,190.21,190.16,0.03]
[1739719147639,0.063,190.21,190.16,18.70044853]
[1739719147933,0.063,190.21,190.16,5.2886]
[1739719148522,0.063,190.21,190.17,13.41184853]
[1739719148730,0.063,190.21,190.18,5.2581]
[1739719149744,0.063,190.21,190.19,13.41184853]
[1739719151613,0.063,190.21,190.19,14.20027593]
[1739719152127,0.063,190.21,190.19,13.41184853]
[1739719153244,0.063,190.21,190.19,18.66964853]
[1739719157725,0.063,190.21,190.2,14.20021861]
[1739719159849,0.063,190.21,190.2,19.45781861]
[1739719160217,0.063,190.21,190.2,13.41184853]
[1739719160420,0.063,190.21,190.16,85.93974404]
[1739719160734,0.063,190.21,190.19,20.0]
[1739719160921,0.063,190.21,190.2,13.41184853]
[1739719161121,0.063,190.21,190.19,20.0]
[1739719164140,0.063,190.21,190.16,83.31]
[1739719166162,5.3203,190.21,190.16,83.31]
[1739719168325,4.3203,190.21,190.16,83.31]
[1739719170324,4.3833,190.21,190.16,83.31]
[1739719174462,4.3833,190.21,190.16,0.03]
[1739719174829,87.4833,190.21,190.16,0.03]
[1739719187171,83.163,190.21,190.16,0.03]
[1739719187468,5.2576,190.2,190.16,0.03]
[1739719188562,88.4204,190.21,190.16,0.03]
[1739719191978,83.163,190.21,190.16,0.03]
[1739719195676,0.063,190.21,190.16,0.03]
[1739719202074,83.1,190.2,190.16,0.03]
[1739719203382,88.3578,190.2,190.16,0.03]
[1739719207500,83.1,190.19,190.16,0.03]
[1739719208905,83.1,190.18,190.16,0.03]
[1739719209096,6.3939,190.17,190.16,0.03]
[1739719209411,89.4939,190.17,190.16,0.03]
[1739719209596,11.6523,190.17,190.16,0.03]
[1739719217908,5.2584,190.17,190.16,0.03]
[1739719218310,5.2578,190.19,190.16,0.03]
[1739719218490,21.39390178,190.2,190.16,0.03]
[1739719218491,8.24990178,190.2,190.16,0.03]
[1739719220825,0.063,190.21,190.16,0.03]
[1739719222333,5.3204,190.21,190.16,0.03]
[1739719222503,0.063,190.21,190.16,0.03]
[1739719233937,5.2578,190.19,190.16,0.03]
[1739719234144,83.1,190.18,190.16,0.03]
[1739719236538,5.2584,190.17,190.16,0.03]
[1739719238542,5.2578,190.19,190.16,0.03]
[1739719243050,13.2067,190.21,190.16,0.03]
[1739719243242,18.464,190.21,190.16,0.03]
[1739719244027,26.71390178,190.21,190.16,0.03]
[1739719249051,5.2578,190.19,190.16,0.03]
[1739719255057,5.2584,190.17,190.16,0.03]
[1739719261963,5.2578,190.19,190.16,0.03]
[1739719266168,5.2576,190.2,190.16,0.03]
[1739719266866,83.1,190.19,190.16,0.03]
[1739719267958,88.3579,190.19,190.16,0.03]
[1739719268364,83.1,190.19,190.16,0.03]
[1739719269386,5.2579,190.19,190.16,0.03]
[1739719269667,0.063,190.21,190.16,0.03]
[1739719269668,5.2576,190.2,190.16,0.03]
[1739719269880,0.063,190.21,190.16,1.5376]
[1739719270468,5.3203,190.21,190.16,1.5376]
[1739719270771,0.063,190.21,190.16,1.5376]
[1739719271271,5.3203,190.21,190.16,1.5376]
[1739719271574,0.063,190.21,190.16,1.5376]
[1739719272069,0.063,190.21,190.17,13.41184853]
[1739719274252,0.063,190.21,190.16,1.5376]
[1739719279171,0.063,190.21,190.17,13.41184853]
[1739719282573,0.063,190.21,190.17,19.86844853]
[1739719283476,0.063,190.21,190.17,25.12674853]
[1739719284375,0.063,190.21,190.19,13.41184853]
[1739719285868,0.063,190.21,190.18,13.41184853]
[1739719287760,0.063,190.21,190.19,0.78846376]
[1739719288684,0.063,190.21,190.18,14.20023318]
[1739719288987,0.063,190.21,190.18,19.45823318]
[1739719289190,0.063,190.21,190.18,14.20023318]
[1739719289577,0.063,190.21,190.18,13.41184853]
[1739719290787,0.063,190.21,190.18,18.66984853]
[1739719292796,0.063,190.21,190.19,0.78842474]
[1739719294293,0.063,190.21,190.2,33.41184853]
[1739719294801,0.063,190.21,190.2,39.66944853]
[1739719297794,0.063,190.21,190.2,40.66939257]
[1739719298463,0.063,190.21,190.2,42.20689257]
[1739719299374,0.063,190.21,190.2,42.99506358]
[1739719300197,0.063,190.21,190.2,138.49506358]
[1739719300368,0.063,190.21,190.2,137.70689257]
[1739719306199,0.063,190.26,190.24,20.99994404]
[1739719306508,0.063,190.26,190.25,19.45615336]
[1739719306797,0.063,190.26,190.25,13.41184853]
[1739719308183,0.063,190.26,190.25,18.66804853]
[1739719309404,0.063,190.26,190.25,13.41184853]
[1739719310688,0.063,190.26,190.25,18.66804853]
[1739719310999,0.063,190.26,190.25,19.45621557]
[1739719311377,0.063,190.26,190.25,101.65621557]
[1739719312302,0.063,190.26,190.24,20.0]
[1739719312477,0.063,190.26,190.22,165.46]
[1739719312880,0.063,190.26,190.23,13.41184853]
[1739719313681,0.063,190.26,190.25,13.41184853]
[1739719314003,0.063,190.26,190.23,14.20004655]
[1739719314408,0.063,190.26,190.25,13.41184853]
[1739719315990,0.063,190.26,190.25,0.78819907]
[1739719317478,0.063,190.26,190.25,101.6562476]
[1739719320109,0.063,190.26,190.25,96.4000476]
[1739719321601,0.063,190.26,190.25,101.6562476]
[1739719322915,0.063,190.26,190.25,95.61184853]
[1739719323921,0.063,190.26,190.25,82.2]
[1739719324124,0.063,190.26,190.24,13.41184853]
[1739719324309,0.063,190.26,190.22,165.46]
[1739719324488,0.063,190.26,190.23,13.41184853]
[1739719324988,0.063,190.26,190.22,165.46]
[1739719325522,0.063,190.26,190.22,83.26]
[1739719325700,0.063,190.26,190.2,0.03]
[1739719326695,5.3189,190.26,190.21,0.03]
[1739719328623,0.063,190.26,190.21,0.03]
[1739719329253,0.063,190.26,190.22,13.41184853]
[1739719329441,0.063,190.26,190.21,13.44184853]
[1739719329947,0.063,190.26,190.21,0.03]
[1739719344239,0.063,190.26,190.22,13.41184853]
[1739719345949,0.063,190.26,190.22,95.61184853]
[1739719346548,0.063,190.26,190.24,13.41184853]
[1739719346726,0.063,190.26,190.24,95.61184853]
[1739719349147,0.063,190.26,190.24,82.2]
[1739719351151,0.063,190.26,190.25,13.41184853]
[1739719352533,0.063,190.26,190.25,18.66804853]
[1739719355955,0.063,190.26,190.25,100.86804853]
[1739719358265,0.063,190.26,190.25,95.61184853]
[1739719358759,0.063,190.26,190.25,100.86804853]
[1739719363449,0.063,190.26,190.25,101.65622139]
[1739719363861,0.063,190.26,190.25,100.86804853]
[1739719367863,0.063,190.26,190.25,114.16804853]
[1739719372261,0.063,190.26,190.25,108.91184853]
[1739719373346,0.063,190.26,190.25,114.16804853]
[1739719373675,0.063,190.26,190.25,108.91184853]
[1739719373859,0.063,190.26,190.25,114.16804853]
[1739719379154,0.063,190.26,190.25,115.16799257]
[1739719379354,0.063,190.26,190.25,114.16804853]
[1739719381577,0.063,190.26,190.25,108.91184853]
[1739719384098,0.063,190.26,190.25,114.16804853]
[1739719385092,0.063,190.26,190.25,108.91184853]
[1739719385667,0.063,190.26,190.25,95.61184853]
[1739719386278,0.063,190.26,190.25,100.86804853]
[1739719387671,0.063,190.26,190.25,95.61184853]
[1739719388076,0.063,190.26,190.25,100.86804853]
[1739719391003,0.063,190.26,190.25,95.61184853]
[1739719391976,0.063,190.26,190.25,100.86804853]
[1739719393975,0.063,190.26,190.25,95.61184853]
[1739719394304,0.063,190.26,190.25,100.86804853]
[1739719394781,0.063,190.26,190.25,95.61184853]
[1739719395276,0.063,190.26,190.25,82.2]
[1739719395989,0.063,190.26,190.22,95.61184853]
[1739719398904,0.063,190.26,190.22,82.2]
[1739719402389,0.063,190.26,190.21,0.03]
[1739719402904,5.3189,190.26,190.21,0.03]
[1739719409307,0.063,190.26,190.21,0.03]
[1739719418431,0.063,190.26,190.22,13.41184853]
[1739719419108,0.063,190.26,190.24,13.41184853]
[1739719420818,0.063,190.26,190.25,18.66804853]
[1739719423431,0.063,190.26,190.25,100.86804853]
[1739719426914,0.063,190.26,190.25,102.65618663]
[1739719427314,0.063,190.26,190.25,115.95618663]
[1739719427542,0.063,190.26,190.25,115.16799257]
[1739719433227,0.063,190.26,190.25,114.16804853]